bitfinex-derivatives/quotes_SOLF0:USTF0_20241127
["timestamp","ask_amount","ask_price","bid_price","bid_amount"]
[1732724497971,9.98590353,240.18,240.05,9.98590353]
[1732724498263,9.98590353,240.18,240.06,2.0809]
[1732724498469,2.0804,240.14,240.02,12.78590353]
[1732724498663,2.0804,240.14,239.92,4.1643]
[1732724498664,9.98590353,240.15,239.97,2.8]
[1732724498865,9.98590353,240.11,239.97,2.8]
[1732724499068,12.78590353,240.17,240.01,9.98590353]
[1732724499463,2.0802,240.16,240.01,9.98590353]
[1732724499859,8.7603615,240.15,240.1,2.0806]
[1732724500064,8.7603615,240.14,240.1,2.0806]
[1732724500267,8.7603615,240.13,240.05,2.8]
[1732724500473,2.08,240.18,240.12,2.0805]
[1732724500773,9.13224528,240.17,240.12,2.0805]
[1732724500974,9.13224528,240.16,240.05,2.8]
[1732724501175,9.13224528,240.15,240.05,2.8]
[1732724501469,19.11814881,240.14,240.01,9.98590353]
[1732724501671,9.13224528,240.13,240.02,2.8]
[1732724501968,9.13224528,240.12,240.02,2.8]
[1732724502168,9.13224528,240.11,240.1,2.0806]
[1732724503577,9.13224528,240.11,240.02,2.8]
[1732724503879,9.13224528,240.1,240.02,2.8]
[1732724504174,9.13224528,240.09,240.07,2.0809]
[1732724504379,9.13224528,240.08,240.07,2.0809]
[1732724504772,9.13224528,240.08,240.05,2.081]
[1732724504970,9.13175609,240.07,240.02,2.8]
[1732724505174,9.13175609,240.06,240.02,2.8]
[1732724505375,9.13175609,240.05,240.02,2.8]
[1732724505571,9.98590353,240.17,240.02,2.8]
[1732724505770,2.0806,240.11,240.05,2.081]
[1732724505976,9.13012276,240.1,240.05,2.081]
[1732724506180,9.13012276,240.09,240.05,2.081]
[1732724506378,9.13012276,240.08,240.07,2.0809]
[1732724509073,9.13012276,240.08,240.02,2.8]
[1732724509074,3.9138,240.2,240.04,9.98590353]
[1732724509280,9.12519554,240.19,240.04,9.98590353]
[1732724509476,9.12519554,240.18,240.04,9.98590353]
[1732724509677,2.0802,240.16,240.04,9.98590353]
[1732724509986,9.12519554,240.15,240.04,9.98590353]
[1732724510173,9.12519554,240.14,240.04,9.98590353]
[1732724510483,13.89970353,240.2,240.04,9.98590353]
[1732724510484,9.12519554,240.13,240.06,2.0809]
[1732724510676,9.12519554,240.12,240.04,9.98590353]
[1732724510876,9.12519554,240.11,240.04,9.98590353]
[1732724511077,9.12519554,240.1,240.04,9.98590353]
[1732724511371,9.12519554,240.09,240.04,9.98590353]
[1732724511572,2.0802,240.15,240.04,9.98590353]
[1732724511882,9.12668973,240.14,240.04,9.98590353]
[1732724512083,9.12668973,240.13,240.04,9.98590353]
[1732724512278,9.12668973,240.12,240.04,9.98590353]
[1732724512483,9.12668973,240.11,240.04,9.98590353]
[1732724512781,9.98590353,240.17,240.01,9.98590353]
[1732724512980,9.12667388,240.16,240.02,2.8]
[1732724513183,9.12667388,240.16,240.1,2.0806]
[1732724514278,11.20677388,240.16,240.1,2.0806]
[1732724514779,11.20677388,240.16,240.11,2.0805]
[1732724515279,9.12667388,240.15,240.04,9.98590353]
[1732724515485,9.12667388,240.14,240.12,2.0805]
[1732724515780,9.12667388,240.13,240.12,2.0805]
[1732724515984,9.12667388,240.13,240.04,9.98590353]
[1732724516283,9.12667388,240.12,240.04,9.98590353]
[1732724516482,9.12667388,240.11,240.04,9.98590353]
[1732724516681,2.0799,240.19,240.13,2.0803]
[1732724516878,9.12447759,240.18,240.12,2.8]
[1732724517179,2.615,240.26,240.1,2.0806]
[1732724517180,19.11038112,240.17,240.1,2.0806]
[1732724517385,9.12447759,240.16,240.08,2.8]
[1732724518082,11.20457759,240.16,240.11,2.0805]
[1732724518387,9.12447759,240.15,240.08,2.8]
[1732724518888,11.20467759,240.15,240.11,2.0805]
[1732724519080,9.12447759,240.14,240.11,2.0805]
[1732724519279,9.12447759,240.14,240.08,2.8]
[1732724519280,9.12447759,240.13,240.08,2.8]
[1732724519476,9.12447759,240.12,240.08,2.8]
[1732724519682,9.12447759,240.11,240.08,2.8]
[1732724519879,2.0801,240.16,240.08,2.8]
[1732724520081,9.04746323,240.15,240.08,2.8]
[1732724520282,9.04746323,240.14,240.08,2.8]
[1732724520579,9.04746323,240.13,240.08,2.8]
[1732724520781,2.55,240.17,240.08,2.8]
[1732724520782,9.04746323,240.12,240.08,2.8]
[1732724521381,2.55,240.17,240.13,2.0804]
[1732724521782,9.04709933,240.16,240.08,2.8]
[1732724522081,9.04709933,240.15,240.08,2.8]
[1732724522390,9.04709933,240.14,240.08,2.8]
[1732724522587,2.55,240.17,240.13,2.0804]
[1732724522787,9.04756164,240.16,240.13,2.0804]
[1732724522982,9.04756164,240.15,240.08,2.8]
[1732724523185,9.04756164,240.14,240.13,2.0804]
[1732724529179,9.04756164,240.14,240.08,9.19110336]
[1732724529489,9.04756164,240.13,240.08,9.19110336]
[1732724529685,6.39110336,240.16,240.14,2.0803]
[1732724529987,8.97164312,240.15,240.14,2.0803]
[1732724530987,8.97164312,240.15,240.12,2.0804]
[1732724531288,15.36274648,240.14,240.08,2.8]
[1732724531484,8.97164312,240.13,240.08,9.19110336]
[1732724531789,8.97164312,240.12,240.09,4.8607]
[1732724532091,8.97164312,240.11,240.09,2.78]
[1732724532291,6.39110336,240.16,240.09,2.78]
[1732724532593,8.97506208,240.15,240.12,2.0805]
[1732724532792,8.97506208,240.14,240.12,2.0805]
[1732724532988,8.97506208,240.13,240.12,2.0805]
[1732724533187,8.97506208,240.15,240.09,2.78]
[1732724533386,8.97506208,240.15,240.13,2.0804]
[1732724534591,8.97506208,240.15,240.1,2.78]
[1732724535587,8.97506208,240.14,240.1,2.78]
[1732724535788,8.97506208,240.13,240.1,2.78]
[1732724535990,8.97506208,240.12,240.11,2.0806]
[1732724536290,8.97506208,240.12,240.1,2.78]
[1732724536495,8.97506208,240.11,240.1,2.78]
[1732724536697,8.97506208,240.16,240.1,2.78]
[1732724536993,8.97506208,240.15,240.1,2.78]
[1732724537194,8.97506208,240.14,240.13,2.0804]
[1732724537389,8.97506208,240.16,240.13,2.0804]
[1732724537595,8.97506208,240.15,240.13,2.0804]
[1732724537790,8.97506208,240.14,240.13,2.0804]
[1732724537990,8.97506208,240.16,240.13,2.0804]
[1732724538184,8.97506208,240.15,240.13,2.0804]
[1732724538389,8.97506208,240.14,240.13,2.0804]
[1732724538586,7.62660336,240.17,240.13,2.0804]
[1732724538587,8.97506208,240.16,240.13,2.0804]
[1732724539191,8.97506208,240.16,240.11,6.39110336]
[1732724539693,1.316,240.23,240.14,2.0803]
[1732724539694,8.97506208,240.15,240.14,2.0803]
[1732724539886,8.97506208,240.22,240.14,6.39110336]
[1732724540092,8.97506208,240.21,240.14,6.39110336]
[1732724540492,6.39110336,240.18,240.09,6.39110336]
[1732724540698,6.39110336,240.16,240.1,2.78]
[1732724540896,8.97506208,240.15,240.1,2.78]
[1732724541095,8.97506208,240.15,240.12,2.0804]
[1732724541292,8.97506208,240.15,240.1,2.78]
[1732724541993,8.97506208,240.15,240.13,2.0803]
[1732724542396,6.39110336,240.18,240.14,2.0803]
[1732724542594,8.99574751,240.17,240.1,2.78]
[1732724542895,8.99574751,240.16,240.1,2.78]
[1732724543091,6.39110336,240.18,240.1,2.78]
[1732724543092,8.99574751,240.15,240.13,2.0803]
[1732724543297,8.99574751,240.14,240.13,2.0803]
[1732724543796,8.99574751,240.14,240.02,4.1627]
[1732724544003,6.39110336,240.15,240.05,6.39110336]
[1732724544192,8.99574751,240.14,240.05,6.39110336]
[1732724544595,6.39110336,240.13,240.04,6.39110336]
[1732724544797,8.99574751,240.12,240.07,2.0809]
[1732724544992,8.99574751,240.12,240.05,2.78]
[1732724545205,8.99574751,240.12,240.06,6.39110336]
[1732724545498,8.99574751,240.11,240.08,6.39110336]
[1732724545696,8.99574751,240.1,240.06,6.39110336]
[1732724545893,8.99574751,240.09,240.08,2.0808]
[1732724546196,8.99574751,240.09,240.06,6.39110336]
[1732724546497,8.99574751,240.08,240.07,2.0809]
[1732724546997,2.0805,240.12,240.06,6.39110336]
[1732724547196,8.99574751,240.11,239.99,1.2016]
[1732724547391,6.39110336,240.1,240.01,6.39110336]
[1732724547594,8.99574751,240.09,240.05,2.0811]
[1732724547793,8.99574751,240.09,240.01,6.39110336]
[1732724548192,11.07644751,240.09,240.03,2.0812]
[1732724548393,8.99574751,240.08,240.03,6.39110336]
[1732724548597,2.5448,240.15,240.05,6.39110336]
[1732724548598,8.99574751,240.11,240.05,6.39110336]
[1732724548789,8.99574751,240.1,240.06,2.0809]
[1732724548994,8.99574751,240.09,240.05,6.39110336]
[1732724549198,8.99574751,240.08,240.05,6.39110336]
[1732724549397,8.99574751,240.07,240.06,2.081]
[1732724549603,8.99574751,240.07,240.05,6.39110336]
[1732724549896,8.99574751,240.06,240.05,6.39110336]
[1732724550090,6.39110336,240.12,240.03,6.39110336]
[1732724550297,8.99574751,240.11,240.03,6.39110336]
[1732724550998,6.39110336,240.08,239.92,1.2134]
[1732724551204,6.39110336,240.06,239.97,6.39110336]
[1732724551404,10.25984751,240.05,239.99,6.39110336]
[1732724551595,8.99574751,240.04,239.99,6.39110336]
[1732724552099,8.99574751,240.04,240.0,2.0814]
[1732724552797,8.99574751,240.04,239.95,9.99572987]
[1732724552990,8.99574751,240.04,239.98,9.99572987]
[1732724553191,8.99574751,240.04,240.03,2.0813]
[1732724553394,8.99574751,240.04,240.02,9.99572987]
[1732724553599,8.99574751,240.03,240.02,9.99572987]
[1732724553797,8.99574751,240.13,240.02,9.99572987]
[1732724553995,8.99574751,240.12,240.02,9.99572987]
[1732724554193,8.99574751,240.11,240.02,9.99572987]
[1732724554404,8.99574751,240.1,240.02,9.99572987]
[1732724554698,8.99574751,240.09,240.02,9.99572987]
[1732724554902,8.99574751,240.08,240.02,9.99572987]
[1732724555105,4.5934,240.14,240.02,9.99572987]
[1732724555400,9.64115224,240.13,240.02,9.99572987]
[1732724555597,9.64115224,240.12,240.02,9.99572987]
[1732724555795,9.64115224,240.11,240.09,2.0807]
[1732724555996,9.64115224,240.1,240.02,9.99572987]
[1732724556199,9.64115224,240.09,240.02,9.99572987]
[1732724556399,9.64115224,240.08,240.05,9.99572987]
[1732724556590,9.64115224,240.07,240.06,2.081]
[1732724559011,2.0804,240.13,240.03,9.99572987]
[1732724559301,9.57564741,240.12,240.08,2.0808]
[1732724559504,9.57564741,240.11,240.08,2.0808]
[1732724559702,9.57564741,240.1,240.08,2.0808]
[1732724559903,9.57564741,240.09,240.08,2.0808]
[1732724560297,9.57564741,240.12,240.08,2.0808]
[1732724560497,9.57564741,240.09,240.08,2.0808]
[1732724561193,9.57564741,240.12,240.08,2.0808]
[1732724561394,2.0807,240.1,240.01,2.78]
[1732724561601,9.57564741,240.09,240.01,2.78]
[1732724561801,9.57564741,240.08,240.03,2.0812]
[1732724562003,2.0808,240.08,240.0,2.78]
[1732724562199,9.57564741,240.07,240.0,2.78]
[1732724562398,2.0811,240.06,240.0,2.0815]
[1732724562606,4.5663,240.06,240.0,2.0815]
[1732724562907,4.5663,240.06,239.97,2.78]
[1732724563203,11.65707319,240.05,240.0,2.0815]
[1732724563409,2.0811,240.05,240.0,2.0815]
[1732724563902,2.0811,240.05,240.01,2.0814]
[1732724564101,4.5662,240.06,239.97,2.78]
[1732724564601,4.5662,240.06,240.03,2.0812]
[1732724564602,2.4852,240.06,240.03,2.0812]
[1732724564798,2.4852,240.06,239.97,2.78]
[1732724565194,4.5662,240.06,239.94,9.99572987]
[1732724565400,4.5662,240.06,239.95,2.78]
[1732724565706,4.5662,240.06,240.01,2.0813]
[1732724566105,2.4852,240.06,239.96,2.66014238]
[1732724566305,2.4852,240.06,239.97,9.99572987]
[1732724566706,2.4852,240.06,239.99,2.0815]
[1732724566900,2.4852,240.06,239.97,9.99572987]
[1732724568011,2.4852,240.06,240.01,2.0814]
[1732724568309,2.4852,240.06,239.97,9.99572987]
[1732724568508,2.4852,240.06,239.99,2.0815]
[1732724568709,2.4852,240.06,239.97,9.99572987]
[1732724569409,2.0812,240.04,239.95,2.78]
[1732724570610,2.0814,240.01,239.91,6.7901049]
[1732724570807,2.4852,240.06,239.92,5.44074623]
[1732724571113,2.4852,240.06,239.92,2.78]
[1732724571114,9.57248668,240.05,239.92,2.78]
[1732724571310,2.0814,240.02,239.92,2.78]
[1732724571507,2.4852,240.06,239.92,2.78]
[1732724571508,9.57248668,240.01,239.92,2.78]
[1732724571810,2.0815,240.0,239.92,2.78]
[1732724572008,1.2093,240.03,239.92,2.78]
[1732724572217,9.57229522,240.02,239.92,2.78]
[1732724572401,1.2093,240.03,239.94,2.082]
[1732724572402,6.40064067,239.99,239.94,2.082]
[1732724572904,2.0817,239.98,239.93,2.0821]
[1732724573108,6.40064067,239.99,239.92,2.78]
[1732724573510,8.48224067,239.99,239.94,2.082]
[1732724573919,9.57133779,239.98,239.92,2.78]
[1732724574212,6.40064067,239.99,239.95,2.0819]
[1732724574416,2.0815,240.0,239.92,2.78]
[1732724574711,2.0814,240.02,239.97,2.0817]
[1732724575218,9.5689187,240.01,239.97,2.0817]
[1732724575708,9.5689187,240.0,239.92,2.78]
[1732724576913,9.5689187,240.0,239.96,2.0818]
[1732724577212,9.5689187,240.0,239.92,2.78]
[1732724578217,9.5689187,240.0,239.96,2.0818]
[1732724579122,2.0814,240.01,239.96,2.0818]
[1732724579313,9.56752118,240.0,239.96,2.0818]
[1732724579514,2.0814,240.01,239.96,2.0818]
[1732724579808,2.0814,240.01,239.92,2.78]
[1732724579809,9.5675214,240.0,239.99,2.0816]
[1732724580015,2.4852,240.06,239.94,10.00053064]
[1732724580215,9.56659831,240.05,239.94,10.00053064]
[1732724580517,2.4852,240.06,239.94,10.00053064]
[1732724580518,9.56659831,240.04,240.0,2.0815]
[1732724580715,9.56659831,240.03,240.0,2.0815]
[1732724580911,9.56659831,240.02,240.0,2.0815]
[1732724581114,2.0812,240.04,240.0,2.0815]
[1732724581312,9.56636974,240.03,240.0,2.0815]
[1732724581517,9.56636974,240.03,239.94,10.00053064]
[1732724581518,9.56636974,240.02,239.92,2.78]
[1732724581717,9.56636974,240.02,239.99,2.0816]
[1732724581913,9.56636974,240.02,239.92,2.78]
[1732724582121,2.0814,240.01,239.96,2.0818]
[1732724582416,9.56697799,240.0,239.92,2.78]
[1732724582612,9.56697799,239.99,239.88,1.282]
[1732724582818,9.56697799,239.98,239.88,1.282]
[1732724583218,9.56697799,240.0,239.88,1.282]
[1732724583420,2.0817,239.98,239.94,2.082]
[1732724583817,9.56697799,239.97,239.94,2.082]
[1732724584117,2.0817,239.98,239.94,2.082]
[1732724584313,9.56707989,239.97,239.85,10.00053064]
[1732724584618,9.56560141,239.96,239.86,2.76]
[1732724584921,10.00053064,239.99,239.86,2.76]
[1732724585118,10.00053064,239.96,239.83,2.76]
[1732724585420,10.82106326,239.95,239.83,2.76]
[1732724585618,2.0821,239.93,239.83,2.76]
[1732724585815,1.2553,239.95,239.83,2.76]
[1732724586019,9.56522741,239.94,239.83,2.76]
[1732724586215,1.2553,239.95,239.83,2.76]
[1732724586420,2.082,239.94,239.87,2.0826]
[1732724586616,2.082,239.94,239.83,2.76]
[1732724586817,1.2553,239.95,239.83,2.76]
[1732724587016,9.5630403,239.94,239.83,2.76]
[1732724587219,2.082,239.94,239.87,2.0826]
[1732724587722,2.082,239.94,239.88,2.0825]
[1732724588423,2.0823,239.91,239.85,2.0828]
[1732724589321,11.25583064,239.95,239.82,2.76]
[1732724589526,2.0822,239.92,239.86,2.0827]
[1732724589728,1.2882,239.94,239.82,2.76]
[1732724589924,1.2882,239.94,239.79,10.00053064]
[1732724589925,9.55647186,239.93,239.79,10.00053064]
[1732724590225,10.00053064,239.86,239.7,15.37540045]
[1732724590427,10.00053064,239.86,239.71,2.5961]
[1732724590723,2.0828,239.85,239.71,1.2705]
[1732724590918,10.00053064,239.83,239.71,1.2705]
[1732724591119,10.00053064,239.83,239.78,2.0834]
[1732724591721,12.08363064,239.83,239.78,2.0834]
[1732724592120,10.00053064,239.83,239.71,4.0305]
[1732724592426,2.0831,239.82,239.77,2.0835]
[1732724592922,10.00053064,239.83,239.75,2.0837]
[1732724592923,2.0833,239.8,239.75,2.0837]
[1732724593127,2.0833,239.8,239.68,2.76]
[1732724593924,1.2726,239.82,239.68,2.76]
[1732724594124,2.0833,239.79,239.68,2.76]
[1732724594719,2.0833,239.79,239.74,2.0837]
[1732724595125,2.0833,239.79,239.68,2.76]
[1732724595427,2.0833,239.79,239.75,2.0837]
[1732724598032,2.0833,239.79,239.74,2.0837]
[1732724598232,2.0833,239.79,239.68,12.76053064]
[1732724598431,1.2726,239.82,239.71,10.00053064]
[1732724598823,1.2726,239.82,239.79,2.0833]
[1732724599134,1.2726,239.82,239.71,10.00053064]
[1732724600231,1.2726,239.82,239.68,12.76053064]
[1732724600627,2.0834,239.79,239.75,2.0837]
[1732724600829,6.41097513,239.81,239.72,6.41097513]
[1732724601030,1.2726,239.82,239.74,6.41097513]
[1732724601225,7.68357513,239.82,239.74,6.41097513]
[1732724601729,6.41097513,239.84,239.76,6.41097513]
[1732724602033,8.49387513,239.84,239.76,6.41097513]
[1732724602230,6.41097513,239.84,239.76,6.41097513]
[1732724602731,8.49387513,239.84,239.79,2.0832]
[1732724603132,6.41097513,239.82,239.79,2.0832]
[1732724603333,8.49407513,239.82,239.74,6.41097513]
[1732724604130,1.3051,239.85,239.78,6.41097513]
[1732724604338,6.41097513,239.9,239.82,6.41097513]
[1732724604530,32.85597873,239.92,239.88,2.0825]
[1732724604731,32.85597873,239.92,239.84,6.41097513]
[1732724605034,6.41097513,239.9,239.85,2.0827]
[1732724605238,6.41097513,239.88,239.82,2.76]
[1732724605629,6.41097513,239.86,239.76,3.9658]
[1732724605831,6.41097513,239.84,239.76,10.37677513]
[1732724606235,6.41097513,239.84,239.81,2.0831]
[1732724606432,2.0828,239.85,239.81,2.0831]
[1732724609242,2.0829,239.84,239.81,2.0831]
[1732724609842,2.0829,239.84,239.8,2.0832]
[1732724610236,2.0832,239.81,239.75,2.76]
[1732724610431,10.01281585,239.85,239.7,10.01281585]
[1732724610633,10.01281585,239.82,239.69,2.76]
[1732724610942,10.01281585,239.79,239.7,2.0841]
[1732724611238,2.0839,239.72,239.63,2.76]
[1732724611452,10.01281585,239.76,239.65,2.0845]
[1732724611642,10.01281585,239.76,239.63,2.76]
[1732724612540,3.9301,239.81,239.68,10.01281585]
[1732724612739,3.9301,239.81,239.71,2.084]
[1732724612740,2.0834,239.78,239.71,2.084]
[1732724612944,3.9301,239.81,239.7,2.76]
[1732724613140,10.01281585,239.88,239.72,10.01281585]
[1732724613349,10.01281585,239.85,239.7,2.76]
[1732724613647,10.01281585,239.79,239.64,1.2313]
[1732724613838,12.77281585,239.82,239.68,10.01281585]
[1732724614036,10.01281585,239.82,239.68,10.01281585]
[1732724614235,2.76,239.83,239.69,2.76]
[1732724614543,2.0834,239.79,239.69,2.76]
[1732724615042,2.083,239.83,239.77,2.0835]
[1732724615249,12.77281585,239.88,239.77,2.0835]
[1732724615437,12.77281585,239.88,239.71,10.01281585]
[1732724615438,9.49525256,239.87,239.71,10.01281585]
[1732724615644,10.01281585,239.85,239.78,2.0834]
[1732724615948,10.01281585,239.85,239.71,10.01281585]
[1732724616146,2.0831,239.82,239.77,2.0835]
[1732724616751,2.0832,239.81,239.76,2.0836]
[1732724617248,10.01281585,239.85,239.71,10.01281585]
[1732724617448,10.01281585,239.85,239.74,2.0837]
[1732724618451,2.0834,239.79,239.74,2.0837]
[1732724619149,2.0831,239.82,239.74,2.0837]
[1732724619453,10.01281585,239.85,239.74,2.0837]
[1732724620249,9.50859315,239.84,239.74,2.0837]
[1732724620459,10.01281585,239.85,239.74,2.0837]
[1732724620649,9.50778604,239.84,239.74,2.0837]
[1732724620853,10.01281585,239.85,239.74,2.0837]
[1732724621049,2.0834,239.79,239.74,2.0837]
[1732724621954,2.0834,239.79,239.75,2.0837]
[1732724622553,10.01281585,239.82,239.64,1.2313]
[1732724622856,10.01281585,239.79,239.64,1.2313]
[1732724623449,10.01281585,239.76,239.64,1.2313]
[1732724624459,2.0839,239.73,239.69,2.0842]
[1732724624661,10.01281585,239.7,239.57,1.3264]
[1732724624852,10.01281585,239.7,239.57,4.0864]
[1732724625056,10.01281585,239.7,239.55,2.76]
[1732724625352,1.2158,239.69,239.55,2.76]
[1732724625556,2.0847,239.64,239.55,2.76]
[1732724626053,10.01281585,239.67,239.55,2.76]
[1732724626259,2.0846,239.65,239.55,2.76]
[1732724626759,2.0845,239.66,239.55,2.76]
[1732724626964,1.2379,239.68,239.56,10.01281585]
[1732724627159,1.2158,239.69,239.59,10.01281585]
[1732724627363,3.3,239.69,239.63,2.0847]
[1732724628761,3.3,239.69,239.59,10.01281585]
[1732724629666,1.2158,239.69,239.63,2.0847]
[1732724629866,2.0843,239.68,239.63,2.0847]
[1732724630262,1.2158,239.69,239.64,2.0846]
[1732724630661,1.2158,239.69,239.59,10.01281585]
[1732724630861,3.3,239.69,239.64,2.0846]
[1732724631867,3.3,239.69,239.59,10.01281585]
[1732724632065,2.084,239.72,239.63,2.0847]
[1732724632269,1.3254,239.74,239.59,10.01281585]
[1732724632465,1.3254,239.74,239.62,2.76]
[1732724632866,2.084,239.72,239.67,2.0843]
[1732724633066,1.3254,239.74,239.62,2.76]
[1732724633467,2.084,239.72,239.67,2.0843]
[1732724633668,1.3254,239.74,239.62,2.76]
[1732724633874,2.0841,239.71,239.65,2.0845]
[1732724634080,1.3254,239.74,239.62,2.76]
[1732724635077,2.0839,239.73,239.67,2.0843]
[1732724635977,10.01281585,239.76,239.62,12.77281585]
[1732724636169,10.01281585,239.76,239.63,1.3147]
[1732724636373,2.0838,239.74,239.63,1.3147]
[1732724636573,10.01281585,239.76,239.63,1.3147]
[1732724637069,2.0839,239.72,239.68,2.0843]
[1732724637269,10.01281585,239.76,239.68,2.0843]
[1732724637780,10.01281585,239.73,239.66,2.0844]
[1732724637979,10.01281585,239.73,239.62,2.76]
[1732724638790,2.084,239.72,239.62,2.76]
[1732724639075,10.01281585,239.76,239.62,2.76]
[1732724639278,2.0839,239.73,239.67,2.0843]
[1732724639676,10.01281585,239.76,239.62,2.76]
[1732724639875,10.01281585,239.73,239.62,2.76]
[1732724640078,2.084,239.72,239.68,2.0843]
[1732724641479,10.01281585,239.73,239.62,2.76]
[1732724641680,2.0839,239.72,239.62,2.76]
[1732724642177,10.01281585,239.73,239.7,2.0841]
[1732724642382,6.41436533,239.72,239.64,6.41436533]
[1732724643281,1.2306,239.82,239.66,6.41436533]
[1732724643490,6.41436533,239.78,239.7,6.41436533]
[1732724643685,6.41436533,239.8,239.72,6.41436533]
[1732724643888,6.41436533,239.8,239.79,2.0833]
[1732724644181,6.41436533,239.81,239.79,2.0833]
[1732724644380,0.75604,239.83,239.82,2.0831]
[1732724644583,0.75604,239.83,239.82,8.49746533]
[1732724645176,6.41436533,239.9,239.88,2.0825]
[1732724645383,2.0819,239.96,239.85,2.76]
[1732724645584,6.41436533,239.93,239.86,2.76]
[1732724645786,6.41436533,239.93,239.89,2.0824]
[1732724645984,6.41436533,239.93,239.86,2.76]
[1732724646187,6.41436533,239.91,239.86,2.76]
[1732724646391,10.0056153,239.96,239.86,2.76]
[1732724647286,10.0056153,239.96,239.88,2.0825]
[1732724647287,2.0821,239.94,239.88,2.0825]
[1732724647491,10.0056153,239.96,239.86,2.76]
[1732724647887,2.082,239.95,239.86,2.76]
[1732724648988,1.3147,239.99,239.86,2.76]
[1732724648989,11.3203153,239.99,239.86,2.76]
[1732724649385,11.3203153,239.99,239.86,12.7656153]
[1732724649589,11.3203153,239.99,239.94,2.082]
[1732724650487,11.3203153,239.99,239.87,1.3222]
[1732724650692,11.3203153,239.99,239.92,2.0821]
[1732724651203,2.0817,239.98,239.93,2.0821]
[1732724651494,11.3203153,239.99,239.87,1.3222]
[1732724651884,11.3203153,239.99,239.94,2.082]
[1732724652996,13.4019153,239.99,239.94,2.082]
[1732724653186,11.3203153,239.99,239.93,2.0821]
[1732724654003,2.0817,239.98,239.93,2.0821]
[1732724654198,11.3203153,239.99,239.93,2.0821]
[1732724654495,1.2679,240.01,239.87,1.3222]
[1732724654796,1.2679,240.01,239.89,10.0056153]
[1732724654797,3.3494,240.01,239.89,10.0056153]
[1732724655191,3.3494,240.01,239.95,2.0819]
[1732724657101,2.0815,240.0,239.95,2.0819]
[1732724658695,1.2679,240.01,239.96,2.0818]
[1732724659097,1.2679,240.01,239.87,1.3222]
[1732724659298,11.3006153,240.05,239.89,10.0056153]
[1732724659493,11.3006153,240.05,239.87,1.3222]
[1732724659494,11.3006153,240.05,239.92,10.0056153]
[1732724659702,11.3006153,240.05,239.93,2.74]
[1732724660400,2.0814,240.02,239.93,2.74]
[1732724661203,2.0814,240.02,239.96,2.0818]
[1732724662094,2.0814,240.02,239.93,2.0821]
[1732724662095,2.0817,239.98,239.93,2.0821]
[1732724662296,2.0817,239.98,239.89,2.74]
[1732724662701,10.0056153,239.99,239.91,2.0823]
[1732724663598,2.0819,239.96,239.91,2.0823]
[1732724663895,2.0819,239.96,239.89,2.74]
[1732724664101,2.0819,239.96,239.92,2.0822]
[1732724664894,10.0056153,239.99,239.89,2.74]
[1732724664896,2.0818,239.97,239.89,2.74]
[1732724665095,10.0056153,239.99,239.89,2.74]
[1732724665997,10.0056153,239.99,239.93,2.082]
[1732724665998,2.0818,239.98,239.93,2.082]
[1732724666197,10.0056153,239.99,239.89,2.74]
[1732724666694,2.0819,239.95,239.92,2.0822]
[1732724667002,10.0056153,239.96,239.89,2.74]
[1732724667499,2.082,239.95,239.91,2.0823]
[1732724667699,10.0056153,239.99,239.89,2.74]
[1732724667899,1.2016,240.0,239.88,2.74]
[1732724668304,2.0818,239.97,239.93,2.082]
[1732724668504,1.2016,240.0,239.88,2.74]
[1732724668894,1.2016,240.0,239.93,2.0821]
[1732724669700,2.0817,239.98,239.93,2.0821]
[1732724671001,2.0817,239.98,239.95,2.0819]
[1732724671707,2.0817,239.98,239.88,2.74]
[1732724674408,6.40176522,239.96,239.9,2.0823]
[1732724674603,6.40176522,239.96,239.88,9.14176522]
[1732724675512,6.40176522,239.94,239.91,2.0822]
[1732724676213,8.48366522,239.96,239.92,2.0822]
[1732724676406,6.40176522,239.96,239.92,2.0822]
[1732724677517,6.40176522,239.96,239.88,9.14176522]